bitfinex/quotes_ETHUSD_20250823
["timestamp","ask_amount","ask_price","bid_price","bid_amount"]
[1755970980887,1e-08,4753.8,4753.7,7.5411779]
[1755971004239,0.09900001,4753.8,4753.7,0.1736]
[1755971004405,0.09900001,4753.8,4753.7,3.6916]
[1755971004605,0.09900001,4753.8,4753.7,5.79522454]
[1755971009138,1e-08,4753.8,4753.7,5.79522454]
[1755971010513,1e-08,4753.8,4753.7,7.10871784]
[1755971010848,1e-08,4753.8,4753.7,7.56571784]
[1755971011219,0.45702775,4755.0,4754.2,2.1034033]
[1755971011421,0.56182775,4755.0,4754.3,3.517]
[1755971011642,0.099,4754.4,4754.3,3.6218]
[1755971014241,0.101,4754.4,4754.3,3.6218]
[1755971018658,0.2883,4754.4,4754.3,3.6218]
[1755971025055,0.002,4754.4,4754.3,3.6218]
[1755971025748,0.2864,4754.4,4753.8,0.02]
[1755971026070,0.4657,4754.4,4753.9,3.516]
[1755971026580,0.3912,4754.4,4753.9,3.516]
[1755971026952,0.4657,4754.4,4753.9,3.516]
[1755971027704,0.58873342,4754.4,4753.9,3.516]
[1755971027996,0.3912,4754.4,4753.9,3.516]
[1755971028284,0.58873546,4754.4,4753.9,0.457]
[1755971028891,0.3912,4754.4,4753.9,0.457]
[1755971029185,0.58871885,4754.4,4753.9,0.457]
[1755971031373,0.3912,4754.4,4753.9,0.457]
[1755971031586,0.58869108,4754.4,4753.8,2.1245736]
[1755971031788,0.58869108,4754.4,4754.0,0.4355]
[1755971035491,0.3912,4754.4,4754.0,0.4355]
[1755971035691,0.58867369,4754.4,4754.0,0.4355]
[1755971038814,0.3912,4754.4,4754.0,0.4355]
[1755971039016,0.58866419,4754.4,4754.0,0.4355]
[1755971039312,0.3912,4754.4,4754.0,0.4355]
[1755971039514,0.5886613,4754.4,4754.0,0.4355]
[1755971039717,0.3912,4754.4,4754.0,0.4355]
[1755971040012,0.58866135,4754.4,4754.0,0.4355]
[1755971041824,0.30426135,4754.4,4754.3,0.2891]
[1755971041981,0.1068,4754.4,4754.3,0.7246]
[1755971042184,0.002,4754.4,4754.3,0.8294]
[1755971043607,0.002,4754.4,4754.3,2.93275906]
[1755971045628,0.002,4754.4,4754.3,0.8294]
[1755971048427,0.002,4754.4,4754.3,0.1048]
[1755971048626,0.3065,4754.4,4754.1,3.515]
[1755971049107,0.002,4754.4,4754.2,0.4355]
[1755971050143,0.0968,4754.3,4754.1,3.515]
[1755971050356,0.0968,4754.3,4753.9,3.515]
[1755971050509,0.1048,4754.2,4753.9,3.515]
[1755971050709,0.2096,4754.2,4753.9,3.9505]
[1755971051749,0.0968,4754.0,4753.9,3.515]
[1755971051949,0.2096,4754.2,4753.9,3.515]
[1755971052160,0.0984,4754.0,4753.9,3.515]
[1755971052977,0.2096,4754.2,4753.9,3.515]
[1755971055561,0.2096,4754.2,4753.8,0.021]
[1755971055562,0.1048,4754.2,4753.8,0.021]
[1755971055845,5.79428854,4754.4,4753.8,0.021]
[1755971055846,0.1048,4753.9,4753.8,0.021]
[1755971059453,0.108,4753.9,4753.8,0.021]
[1755971060770,0.1048,4753.9,4753.8,0.021]
[1755971061952,0.108,4753.9,4753.8,0.021]
[1755971062856,0.1048,4753.9,4753.8,0.021]
[1755971065637,0.737101,4753.9,4753.8,0.021]
[1755971066858,0.1048,4753.9,4753.8,0.021]
[1755971067853,0.1048,4753.9,4753.8,0.3137]
[1755971068033,0.1048,4753.9,4753.8,0.7416]
[1755971072475,0.737101,4753.9,4753.8,0.7416]
[1755971073867,0.737101,4753.9,4753.8,0.3137]
[1755971074276,0.737101,4753.9,4753.8,0.7416]
[1755971076164,0.737101,4753.9,4753.8,0.4489]
[1755971076779,0.737101,4753.9,4753.8,0.7416]
[1755971078676,0.737101,4753.9,4753.8,0.3137]
[1755971078867,0.632301,4753.9,4753.8,3.49465029]
[1755971079246,0.33113817,4754.4,4753.8,3.49465029]
[1755971079545,0.33113817,4754.4,4753.9,3.9409]
[1755971079746,0.33113817,4754.4,4754.3,0.2927]
[1755971080368,0.33113817,4754.4,4754.3,0.7206]
[1755971081457,0.52861362,4754.4,4754.3,0.7206]
[1755971082271,0.52861362,4754.4,4754.0,0.4279]
[1755971082670,0.52861362,4754.4,4754.1,0.4279]
[1755971083246,0.52861362,4754.4,4754.2,0.4279]
[1755971083880,0.52861362,4754.4,4754.3,0.4279]
[1755971085660,0.52862824,4754.4,4754.3,0.4279]
[1755971085882,0.52862824,4754.4,4754.3,0.7206]
[1755971086951,0.33113817,4754.4,4754.3,0.7206]
[1755971087151,0.52861575,4754.4,4754.3,0.7206]
[1755971089578,0.52860842,4754.4,4754.3,0.7206]
[1755971090480,0.52861151,4754.4,4754.1,0.4714]
[1755971090782,0.52861151,4754.4,4754.2,0.4714]
[1755971092488,0.19947334,4754.4,4754.2,0.4714]
[1755971093574,0.19947334,4754.4,4754.3,0.4714]
[1755971093782,0.19947334,4754.4,4754.3,0.7667]
[1755971095896,0.002,4754.4,4754.3,0.7667]
[1755971096063,0.19947231,4754.4,4754.3,0.7667]
[1755971096996,0.002,4754.4,4754.3,0.7667]
[1755971097198,0.1994738,4754.4,4754.3,0.7667]
[1755971097595,0.19947407,4754.4,4754.3,0.7667]
[1755971105803,0.002,4754.4,4754.3,0.7667]
[1755971105973,0.19950667,4754.4,4754.3,0.7667]
[1755971106374,0.19951802,4754.4,4754.3,0.7667]
[1755971108108,0.002,4754.4,4754.3,0.7667]
[1755971108505,0.002,4754.4,4754.3,0.8715]
[1755971108707,0.002,4754.4,4754.3,1.88917885]
[1755971109008,0.002,4754.4,4754.3,0.8715]
[1755971110309,0.002,4754.4,4754.3,4.3825]
[1755971115821,0.002,4754.4,4754.3,4.3835]
[1755971124110,6.08058854,4754.4,4754.3,0.001]
[1755971124440,6.08058854,4754.4,4754.3,3.511]
[1755971125707,6.08058854,4754.4,4754.3,0.001]
[1755971126408,0.2883,4754.4,4754.3,0.001]
[1755971131937,0.002,4754.4,4754.3,0.7464]
[1755971136916,0.002,4754.4,4754.3,0.8512]
[1755971137444,0.002,4754.4,4754.3,1.49766831]
[1755971145231,0.002,4754.4,4754.3,0.8512]
[1755971154966,0.002,4754.4,4754.3,5.95455906]
[1755971155370,0.002,4754.4,4754.3,6.06135906]
[1755971156237,0.002,4754.4,4754.3,9.56935906]
[1755971164356,0.002,4754.4,4754.3,8.82395906]
[1755971164659,0.002,4754.4,4754.3,10.65762855]
[1755971164861,0.002,4754.4,4754.3,11.39302855]
[1755971169880,0.002,4754.4,4754.3,3.6128]
[1755971169881,0.101,4754.4,4754.3,3.6128]
[1755971171159,0.002,4754.4,4754.3,3.6128]
[1755971171350,0.002,4754.4,4754.3,4.3482]
[1755971172679,0.002,4754.4,4754.3,3.6128]
[1755971172852,0.003,4754.4,4754.3,3.6128]
[1755971173257,0.003,4754.4,4754.3,0.1058]
[1755971173458,0.101,4754.4,4754.3,3.508]
[1755971175283,0.101,4754.4,4754.3,0.001]
[1755971177990,0.003,4754.4,4754.3,0.001]
[1755971178804,0.002,4754.4,4754.3,0.001]
[1755971178984,0.002,4754.4,4754.3,0.747]
[1755971179586,0.002,4754.4,4754.3,4.254]
[1755971179796,0.002,4754.4,4754.3,5.20488992]
[1755971181267,0.002,4754.4,4754.3,4.3588]
[1755971181496,0.002,4754.4,4754.3,3.6128]
[1755971182205,0.002,4754.4,4754.3,4.3588]
[1755971182704,0.004,4754.4,4754.3,3.6128]
[1755971183105,0.004,4754.4,4754.3,3.9277]
[1755971183106,0.002,4754.4,4754.3,3.9277]
[1755971183403,0.002,4754.4,4754.3,4.3588]
[1755971188673,0.002,4754.4,4754.3,10.10838767]
[1755971189187,0.002,4754.4,4754.3,10.21318767]
[1755971192385,0.002,4754.4,4754.3,17.28706756]
[1755971198313,0.002,4754.4,4754.3,17.94706756]
[1755971201532,0.002,4754.4,4754.3,10.21318767]
[1755971202088,0.002,4754.4,4754.3,3.2106]
[1755971202089,0.101,4754.4,4754.3,3.2106]
[1755971202332,0.101,4754.4,4754.3,6.7166]
[1755971202626,0.002,4754.4,4754.3,6.7166]
[1755971202991,0.002,4754.4,4754.3,0.2106]
[1755971202992,0.101,4754.4,4754.3,0.2106]
[1755971203387,0.3573,4754.4,4754.3,3.6118]
[1755971203597,0.3573,4754.4,4754.3,0.001]
[1755971205298,0.101,4754.4,4754.3,0.001]
[1755971207620,0.002,4754.4,4754.3,0.001]
[1755971208116,0.002,4754.4,4754.3,0.3159]
[1755971208322,0.002,4754.4,4754.3,1.51763169]
[1755971209287,0.002,4754.4,4754.3,0.747]
[1755971213299,0.002,4754.4,4754.3,2.85035906]
[1755971214300,0.002,4754.4,4754.3,2.93464106]
[1755971217639,0.002,4754.4,4754.3,0.831282]
[1755971218136,0.002,4754.4,4754.3,2.93464106]
[1755971218436,0.002,4754.4,4754.3,3.79943421]
[1755971219135,0.002,4754.4,4754.3,1.69607515]
[1755971219334,0.002,4754.4,4754.3,0.516382]
[1755971220339,0.2878,4754.4,4754.3,3.590282]
[1755971220640,0.2878,4754.4,4754.3,3.506]
[1755971220941,0.3607,4754.4,4754.3,3.506]
[1755971221241,0.2878,4754.4,4754.3,3.506]
[1755971224742,0.002,4754.4,4754.3,3.506]
[1755971224940,0.002,4754.4,4754.3,3.6108]
[1755971228639,0.002,4754.4,4754.3,4.0601]
[1755971231706,0.002,4754.4,4754.3,4.3552]
[1755971243868,0.002,4754.4,4754.3,4.0601]
[1755971250507,0.002,4754.4,4754.3,4.3478]
[1755971252919,0.002,4754.4,4754.3,4.0601]
[1755971255698,0.002,4754.4,4754.3,4.3478]
[1755971263505,0.002,4754.4,4754.3,6.45115906]
[1755971269127,0.002,4754.4,4754.3,4.3478]
[1755971271707,0.002,4754.4,4754.3,6.45115906]
[1755971271999,0.002,4754.4,4754.3,4.3478]
[1755971272207,0.002,4754.4,4754.3,6.45115906]
[1755971272440,0.002,4754.4,4754.3,4.3478]
[1755971273530,0.002,4754.4,4754.3,6.45115906]
[1755971274038,0.101,4754.4,4754.3,2.94615906]
[1755971274240,0.101,4754.4,4754.3,0.1058]
[1755971274656,0.002,4754.4,4754.3,0.1058]
[1755971274955,0.002,4754.4,4754.3,0.5773]
[1755971275258,0.002,4754.4,4754.3,0.893]
[1755971276449,0.002,4754.4,4754.3,4.397]
[1755971277328,0.002,4754.4,4754.3,6.50035906]
[1755971277930,0.002,4754.4,4754.3,4.397]
[1755971278330,0.002,4754.4,4754.3,3.6098]
[1755971279450,0.002,4754.4,4754.3,5.71315906]
[1755971280270,0.002,4754.4,4754.3,6.50035906]
[1755971280465,0.002,4754.4,4754.3,3.6098]
[1755971280841,0.002,4754.4,4754.3,5.71315906]
[1755971281041,0.002,4754.4,4754.3,6.50035906]
[1755971288484,0.002,4754.4,4754.3,6.58464306]
[1755971293602,0.002,4754.4,4754.3,10.45345211]
[1755971293761,0.002,4754.4,4754.3,10.34865211]
[1755971300677,0.002,4754.4,4754.3,11.00865211]
[1755971303714,0.002,4754.4,4754.3,11.11345211]
[1755971305117,0.002,4754.4,4754.3,15.36345211]
[1755971305432,0.002,4754.4,4754.3,21.15479788]
[1755971310947,0.002,4754.4,4754.3,16.90479788]
[1755971316450,0.002,4754.4,4754.3,13.40079788]
[1755971316753,0.002,4754.4,4754.3,16.90279788]
[1755971317053,0.002,4754.4,4754.3,21.15279788]
[1755971320123,0.101,4754.4,4754.3,13.91425211]
[1755971320331,0.101,4754.4,4754.3,3.190084]
[1755971320548,0.3588,4754.4,4754.3,6.691084]
[1755971320748,0.3588,4754.4,4754.3,3.691084]
[1755971326734,0.101,4754.4,4754.3,3.691084]
[1755971327354,0.101,4754.4,4754.3,0.190084]
[1755971327568,0.3605,4754.4,4754.3,3.586284]
[1755971328263,0.101,4754.4,4754.3,3.586284]
[1755971332966,0.101,4754.4,4754.3,0.085284]
[1755971333160,0.101,4754.4,4754.3,3.586284]
[1755971336680,0.002,4754.4,4754.3,3.586284]
[1755971339662,0.002,4754.4,4754.3,3.502]
[1755971340065,0.002,4754.4,4754.3,3.9407]
[1755971340664,0.002,4754.4,4754.3,4.254]
[1755971341065,0.002,4754.4,4754.3,3.502]
[1755971342360,0.002,4754.4,4754.3,3.9407]
[1755971342859,0.002,4754.4,4754.3,5.91865906]
[1755971343080,0.002,4754.4,4754.3,4.254]
[1755971343470,0.002,4754.4,4754.3,6.35735906]
[1755971343677,0.002,4754.4,4754.3,6.46215906]
[1755971344077,0.002,4754.4,4754.3,4.3588]
[1755971344586,0.002,4754.4,4754.3,0.8578]
[1755971344800,0.002,4754.4,4754.3,3.6068]
[1755971346081,0.002,4754.4,4754.3,4.0455]
[1755971347596,0.462,4754.4,4754.3,0.001]
[1755971348093,0.8208,4754.4,4754.3,0.001]
[1755971348263,1.27446641,4754.4,4754.3,0.001]
[1755971349589,1.01666641,4754.4,4754.3,0.001]
[1755971351367,1.34577285,4754.4,4754.3,0.001]
[1755971353774,3.44908767,4754.4,4754.3,0.001]
[1755971353975,1.34577285,4754.4,4754.3,0.001]
[1755971354916,4.84677285,4754.4,4754.3,0.001]
[1755971356283,4.8468065,4754.4,4754.3,0.001]
[1755971356488,4.39310644,4754.4,4754.3,0.001]
[1755971356690,4.84685765,4754.4,4754.3,0.001]
[1755971357419,4.39310644,4754.4,4754.3,0.001]
[1755971359795,4.29570644,4754.4,4754.3,0.4691]
[1755971360305,4.59210644,4754.4,4754.3,0.001]
[1755971363299,5.04581788,4754.4,4754.3,0.001]
[1755971363499,4.59210644,4754.4,4754.3,0.001]
[1755971364004,5.04582299,4754.4,4754.3,0.001]
[1755971364204,4.59210644,4754.4,4754.3,0.001]
[1755971365929,4.263,4754.4,4754.3,0.001]
[1755971366226,4.71681806,4754.4,4754.3,0.001]
[1755971369914,4.42041806,4754.4,4754.3,0.001]
[1755971372419,4.74951683,4754.4,4754.3,0.001]
[1755971372618,4.74951683,4754.4,4754.3,0.4691]
[1755971373517,4.74951683,4754.4,4754.3,0.001]
[1755971374743,6.85283165,4754.4,4754.3,0.001]
[1755971374949,6.91523165,4754.4,4754.3,0.001]
[1755971375244,4.81191683,4754.4,4754.3,0.001]
[1755971375618,4.74977352,4754.4,4754.3,0.001]
[1755971376143,6.91748834,4754.4,4754.3,0.001]
[1755971378929,4.81417352,4754.4,4754.3,0.001]
[1755971380965,6.58838957,4754.4,4754.3,0.001]
[1755971382774,4.48507475,4754.4,4754.3,0.001]
[1755971383143,4.42067475,4754.4,4754.3,0.001]
[1755971383341,6.52398957,4754.4,4754.3,0.001]
[1755971383539,6.62688957,4754.4,4754.3,0.001]
[1755971383872,7.64563292,4754.4,4754.3,0.001]
[1755971384078,7.97476251,4754.4,4754.3,0.001]
[1755971384983,7.40716907,4754.4,4754.3,0.001]
[1755971385283,7.40725684,4754.4,4754.3,0.001]
[1755971386280,7.40716546,4754.4,4754.3,0.001]
[1755971386694,7.21010693,4754.4,4754.3,0.001]
[1755971386850,7.15312166,4754.4,4754.3,0.001]
[1755971387387,7.40712166,4754.4,4754.3,0.001]
[1755971388001,2.76335906,4754.3,4753.8,0.021]
[1755971388183,2.76335906,4754.3,4753.4,0.001]
[1755971388184,2.76371305,4753.5,4753.4,0.001]
[1755971388492,24.74144244,4753.5,4753.4,0.001]
[1755971388667,24.74144244,4753.5,4753.2,0.001]
[1755971388668,2.76375731,4753.4,4753.2,0.001]
[1755971388854,4.08868929,4753.4,4753.2,0.001]
[1755971389057,2.76386735,4753.2,4752.8,1e-08]
[1755971389257,0.66,4752.8,4752.2,0.001]
[1755971389456,11.18509003,4752.3,4752.2,0.001]
[1755971389657,17.90399906,4752.3,4752.2,0.001]
[1755971389887,17.97329906,4752.3,4752.2,0.001]
[1755971390285,18.31867352,4752.3,4752.2,0.001]
[1755971390485,19.08483331,4752.3,4752.2,0.001]
[1755971390653,19.16920231,4752.3,4752.2,0.001]
[1755971391175,19.49853766,4752.3,4752.2,0.001]
[1755971391594,19.65404936,4752.3,4752.2,0.001]
[1755971392055,19.65404936,4752.3,4751.8,0.021]
[1755971392056,2.10442138,4751.9,4751.8,0.021]
[1755971392268,17.39813235,4751.9,4751.8,1e-08]
[1755971392471,17.36001718,4751.9,4751.8,1e-08]
[1755971392696,17.3600044,4751.9,4751.8,1e-08]
[1755971392896,17.16443818,4751.9,4751.8,1e-08]
[1755971393792,17.35998425,4751.9,4751.8,1e-08]
[1755971394389,17.92187679,4751.9,4751.8,1e-08]
[1755971394588,7.26332251,4751.9,4751.8,1e-08]
[1755971394906,10.20242997,4751.9,4751.8,1e-08]
[1755971395310,10.0068839,4751.9,4751.8,1e-08]
[1755971395805,10.0912599,4751.9,4751.8,1e-08]
[1755971398007,10.1968599,4751.9,4751.8,0.00100001]
[1755971399577,6.6958599,4751.9,4751.8,0.00100001]
[1755971399790,5.6429599,4751.9,4751.8,0.31040001]
[1755971399991,9.2495599,4751.9,4751.8,0.76510001]
[1755971400689,9.9095599,4751.9,4751.8,0.76510001]
[1755971401314,9.2495599,4751.9,4751.8,0.76510001]
[1755971401519,6.0779095,4751.9,4751.8,0.76510001]
[1755971401723,10.2399095,4751.9,4751.8,0.76510001]
[1755971402315,6.7379095,4751.9,4751.8,0.76510001]
[1755971402529,3.97348812,4751.9,4751.8,0.76510001]
[1755971402814,4.0213256,4751.9,4751.8,0.76510001]
[1755971403015,7.0213256,4751.9,4751.8,0.76510001]
[1755971403620,3.5193256,4751.9,4751.8,0.76510001]
[1755971403919,5.62374698,4751.9,4751.8,0.76510001]
[1755971404101,0.5193256,4751.9,4751.8,0.76510001]
[1755971404591,3.9369496,4751.9,4751.8,0.76510001]
[1755971406489,0.4349496,4751.9,4751.8,0.76510001]
[1755971406783,3.9369496,4751.9,4751.8,0.76510001]
[1755971407416,0.4349496,4751.9,4751.8,0.76510001]
[1755971407920,0.1056,4751.9,4751.8,0.76510001]
[1755971408292,3.6076,4751.9,4751.8,0.76510001]
[1755971411192,3.9369097,4751.9,4751.8,0.76510001]
[1755971413399,4.38759629,4751.9,4751.8,0.76510001]
[1755971416028,4.38659629,4751.9,4751.8,0.76510001]
[1755971419645,4.05728659,4751.9,4751.8,0.76510001]
[1755971420246,0.55628659,4751.9,4751.8,0.76510001]
[1755971420948,4.05728659,4751.9,4751.8,0.76510001]
[1755971422849,4.38659723,4751.9,4751.8,0.76510001]
[1755971428360,5.14524065,4751.9,4751.8,0.76510001]
[1755971430965,5.14724065,4751.9,4751.8,0.76510001]
[1755971432135,4.58534811,4751.9,4751.8,0.76510001]
[1755971433364,5.15297697,4751.9,4751.8,0.76510001]
[1755971433562,1.65197697,4751.9,4751.8,0.76510001]
[1755971433731,5.15297697,4751.9,4751.8,0.76510001]
[1755971434961,5.1533748,4751.9,4751.8,0.76510001]
[1755971435368,4.58574594,4751.9,4751.8,0.76510001]
[1755971435889,4.58574022,4751.9,4751.8,0.76510001]
[1755971436452,4.38859723,4751.9,4751.8,0.76510001]
[1755971436853,4.28299723,4751.9,4751.8,0.76510001]
[1755971437061,0.45268659,4751.9,4751.8,0.76510001]
[1755971437266,0.002,4751.9,4751.8,0.76510001]
[1755971437539,0.002,4751.9,4751.8,2.86956568]
[1755971437839,0.002,4751.9,4751.8,3.37763558]
[1755971438078,0.002,4751.9,4751.8,3.48323558]
[1755971438248,0.002,4751.9,4751.8,6.48323558]
[1755971438778,0.002,4751.9,4751.8,7.11559758]
[1755971439272,0.002,4751.9,4751.8,7.77559758]
[1755971440713,0.002,4751.9,4751.8,7.11559758]
[1755971440908,0.002,4751.9,4751.8,4.37876991]
[1755971441192,0.002,4751.9,4751.8,0.87070001]
[1755971442660,0.002,4751.9,4751.8,2.97516568]
[1755971444768,0.002,4751.9,4751.8,0.87070001]
[1755971445284,0.002,4751.9,4751.8,2.97516568]
[1755971445626,0.002,4751.9,4751.8,0.87070001]
[1755971449515,0.002,4751.9,4751.8,2.97516568]
[1755971450179,0.002,4751.9,4751.8,0.10660001]
[1755971450509,0.101,4751.9,4751.8,0.00100001]
[1755971450709,0.2066,4751.9,4751.8,0.00100001]
[1755971450909,2.31102138,4751.9,4751.8,0.00100001]
[1755971451136,0.4644,4751.9,4751.8,0.00100001]
[1755971451984,0.2066,4751.9,4751.8,0.00100001]
[1755971453718,2.31102138,4751.9,4751.8,0.00100001]
[1755971453883,2.64033302,4751.9,4751.8,0.00100001]
[1755971454725,0.53591164,4751.9,4751.8,0.00100001]
[1755971456305,0.43691164,4751.9,4751.8,0.00100001]
[1755971456720,0.33131164,4751.9,4751.8,0.76320001]
[1755971457029,0.002,4751.9,4751.8,0.76320001]
[1755971458231,0.002,4751.9,4751.8,0.00100001]
[1755971459933,0.002,4751.9,4751.8,0.46920001]
[1755971462404,0.002,4751.9,4751.8,0.76320001]
[1755971466206,0.002,4751.9,4751.8,2.97326568]
[1755971467759,0.002,4751.9,4751.8,5.97326568]
[1755971468631,0.002,4751.9,4751.8,6.05758268]
[1755971469950,0.002,4751.9,4751.8,7.93260928]
[1755971470447,0.002,4751.9,4751.8,8.59260928]
[1755971470648,0.002,4751.9,4751.8,12.84260928]
[1755971472222,1e-08,4751.9,4751.8,12.84260928]
[1755971475664,1e-08,4751.9,4751.8,16.34260928]
[1755971475862,1e-08,4751.9,4751.8,19.76976356]
[1755971476384,1e-08,4751.9,4751.8,22.76976356]
[1755971476542,1e-08,4751.9,4751.8,18.51976356]
[1755971483488,0.09900001,4751.9,4751.8,15.88253696]
[1755971486308,1e-08,4751.9,4751.8,15.88253696]
[1755971486604,1e-08,4751.9,4751.8,16.64153696]
[1755971488507,1e-08,4751.9,4751.8,20.89153696]
[1755971488671,1e-08,4751.9,4751.8,23.03341496]
[1755971501586,1e-08,4751.9,4751.8,23.69341496]
[1755971507293,0.002,4752.4,4752.3,2.76424426]
[1755971507630,0.002,4752.4,4752.3,15.25379854]
[1755971507791,0.002,4752.4,4752.3,15.35939854]
[1755971507990,0.002,4752.4,4752.3,17.87936914]
[1755971508205,0.002,4752.4,4752.3,18.13886914]
[1755971517998,0.002,4752.4,4752.3,22.38886914]
[1755971521628,0.002,4752.4,4752.3,25.38886914]
[1755971535032,0.002,4752.9,4752.4,5.76419998]
[1755971535229,0.002,4752.9,4752.8,12.19117717]
[1755971535456,0.002,4752.9,4752.8,15.79477717]
[1755971535859,0.002,4752.9,4752.8,20.32427717]
[1755971536337,0.002,4752.9,4752.8,19.03035235]
[1755971536338,0.101,4752.9,4752.8,19.03035235]
[1755971536538,0.101,4752.9,4752.8,20.91133672]
[1755971541660,0.101,4752.9,4752.8,16.66133672]
[1755971550405,0.002,4752.9,4752.8,16.66133672]
[1755971557906,0.002,4752.9,4752.8,17.11963672]
[1755971559327,0.002,4752.9,4752.8,17.41443672]
[1755971559485,0.002,4752.9,4752.8,27.45766618]
[1755971561884,0.002,4752.9,4752.8,28.11766618]
[1755971565921,0.002,4752.9,4752.8,22.32443672]
[1755971568523,0.002,4752.9,4752.8,28.11766618]
[1755971569522,0.002,4752.9,4752.8,22.32443672]
[1755971577341,0.002,4752.9,4752.8,20.91133672]
[1755971577342,0.101,4752.9,4752.8,20.91133672]
[1755971578207,0.002,4752.9,4752.8,20.91133672]
[1755971578622,0.002,4752.9,4752.8,22.52933672]
[1755971583264,0.002,4752.9,4752.8,18.75333672]
[1755971585864,0.002,4752.9,4752.8,18.27933672]
[1755971587249,0.002,4752.9,4752.8,18.75333672]
[1755971587470,0.002,4752.9,4752.8,19.06913672]
[1755971591469,0.002,4752.9,4752.8,13.27590726]
[1755971591640,0.002,4752.9,4752.8,19.06913672]
[1755971596146,0.002,4752.9,4752.8,12.48610726]
[1755971596343,0.101,4752.9,4752.8,12.48610726]
[1755971597076,0.002,4752.9,4752.8,12.48510726]
[1755971598080,0.002,4752.9,4752.8,13.27490726]
[1755971600883,0.002,4752.9,4752.8,17.52490726]
[1755971605084,0.002,4752.9,4752.8,18.18490726]
[1755971605610,0.002,4753.4,4752.9,5.76397862]
[1755971605891,0.002,4753.4,4753.3,9.19302946]
[1755971606061,0.002,4753.4,4753.3,12.68902946]
[1755971606253,0.002,4753.4,4753.3,15.25253102]
[1755971606578,0.002,4753.4,4753.3,14.58212002]
[1755971606780,0.002,4753.4,4753.3,16.62849062]
[1755971608861,0.101,4753.4,4753.3,10.83526116]
[1755971611300,0.101,4753.4,4753.3,8.78889056]
[1755971619601,0.101,4753.4,4753.3,0.189089]
[1755971619804,0.101,4753.4,4753.3,3.685089]
[1755971620102,0.002,4753.4,4753.3,5.29289056]
[1755971620272,0.002,4753.4,4753.3,8.78889056]
[1755971621788,0.002,4753.4,4753.3,9.24859056]
[1755971622305,0.002,4753.4,4753.3,9.54359056]
[1755971623605,0.002,4753.4,4753.3,5.75259056]
[1755971623790,0.002,4753.4,4753.3,9.24859056]
[1755971623992,0.002,4753.4,4753.3,8.78889056]
[1755971629887,0.002,4753.4,4753.3,5.72899056]
[1755971630093,0.002,4753.4,4753.3,9.22499056]
[1755971631209,0.002,4753.4,4753.3,9.53449056]
[1755971632397,0.002,4753.4,4753.3,15.32772002]
[1755971632594,0.002,4753.4,4753.3,17.07087849]
[1755971639099,0.002,4753.4,4753.3,11.27764903]
[1755971639303,0.002,4753.4,4753.3,15.32772002]
[1755971641898,0.002,4753.4,4753.3,6.685089]
[1755971642098,0.101,4753.4,4753.3,8.78889056]
[1755971642321,0.101,4753.4,4753.3,0.189089]
[1755971642521,0.101,4753.4,4753.3,6.684089]
[1755971643919,0.101,4753.4,4753.3,8.78789056]
[1755971643920,0.002,4753.4,4753.3,8.78789056]
[1755971644224,0.002,4753.4,4753.3,9.22399056]
[1755971645824,0.002,4753.4,4753.3,8.78789056]
[1755971648628,0.002,4753.4,4753.3,8.70360156]
[1755971649726,0.002,4753.4,4753.3,9.13970156]
[1755971650093,0.002,4753.4,4753.3,15.13763102]
[1755971650306,0.002,4753.4,4753.3,16.52859004]
[1755971650499,0.002,4753.4,4753.3,15.24243102]
[1755971650823,0.002,4753.4,4753.3,15.32672502]
[1755971653500,0.002,4753.4,4753.3,14.58112502]
[1755971654636,0.002,4753.4,4753.3,15.01722502]
[1755971661738,0.002,4753.4,4753.3,15.33272502]
[1755971669373,0.002,4753.4,4753.3,16.55165652]
[1755971671264,0.002,4753.4,4753.3,15.33272502]
[1755971700527,0.002,4753.4,4753.3,14.58112502]
[1755971700828,0.002,4753.4,4753.3,15.04802502]
[1755971701320,0.002,4753.4,4753.3,15.34002502]
[1755971703329,0.002,4753.4,4753.3,20.25002502]
[1755971703514,0.002,4753.4,4753.3,22.39190302]
[1755971720220,0.02,4753.8,4753.7,2.76362454]
[1755971720420,0.02,4753.8,4753.7,15.363454]
[1755971720714,0.02,4753.8,4753.7,15.930654]
[1755971720949,0.02,4753.8,4753.7,25.97388346]
[1755971721154,0.02,4754.8,4753.9,2.76353604]
[1755971721448,0.02,4754.8,4754.3,9.45322946]
[1755971721622,0.101,4754.4,4754.3,20.94761798]
[1755971722020,0.101,4754.4,4754.3,21.03188798]
[1755971722221,0.101,4754.4,4754.3,23.17376598]
[1755971727028,0.101,4754.4,4754.3,17.38053652]
[1755971733854,0.002,4754.4,4754.3,17.38053652]
[1755971734055,0.002,4754.4,4754.3,21.63053652]
[1755971741182,0.0046,4754.4,4754.3,7.43907]
[1755971741351,0.2615,4754.4,4754.3,0.08427]
[1755971741551,0.2615,4754.4,4754.1,0.1048]
[1755971742059,0.1048,4754.2,4753.7,3.7535]
[1755971742259,0.0052,4753.8,4753.6,3.492]
[1755971742452,0.0052,4753.8,4753.5,3.492]
[1755971742453,0.2544,4753.7,4753.5,3.492]
[1755971742758,0.099,4753.6,4753.5,3.492]
[1755971742960,0.099,4753.6,4753.4,3.492]
[1755971743264,0.3518,4753.6,4753.4,3.492]
[1755971743471,0.2528,4753.5,4753.4,3.492]
[1755971743659,0.3533,4753.5,4753.4,3.492]
[1755971744547,0.1005,4753.5,4753.4,3.492]